bitfinex-derivatives/quotes_ETHF0:USTF0_20251021
["timestamp","ask_amount","ask_price","bid_price","bid_amount"]
[1761020580534,0.3276,3874.2,3873.9,0.34581769]
[1761020580831,0.46453,3874.1,3873.9,0.00221769]
[1761020581023,0.3276,3874.0,3873.9,0.00221769]
[1761020583134,0.79227,3872.9,3872.8,0.02582111]
[1761020584026,0.79481883,3872.9,3872.8,0.02866587]
[1761020584427,0.3276,3872.0,3871.8,0.3436]
[1761020584628,0.46481,3871.8,3871.3,0.3436]
[1761020584833,0.3276,3871.7,3871.3,0.3436]
[1761020585233,0.3276,3872.2,3871.4,0.3436]
[1761020585430,0.46478,3872.0,3871.5,0.3436]
[1761020585626,0.3276,3872.2,3871.6,0.3436]
[1761020585936,0.3276,3871.7,3871.4,0.00284729]
[1761020586131,0.3276,3871.7,3871.4,0.34644729]
[1761020586132,0.46482,3871.7,3871.4,0.34644729]
[1761020586434,0.3276,3872.0,3871.4,0.34644729]
[1761020586629,0.3276,3872.0,3871.5,0.80843]
[1761020587029,0.3276,3872.3,3871.4,0.00284729]
[1761020587327,0.3276,3871.5,3871.4,0.00284729]
[1761020588035,0.3276,3872.8,3871.8,0.139]
[1761020588336,0.3276,3872.8,3871.7,0.3436]
[1761020588539,0.3276,3872.0,3871.5,0.46483]
[1761020588839,0.00254883,3872.9,3872.2,0.3436]
[1761020589042,0.00254883,3872.9,3871.7,0.139]
[1761020589043,0.33014883,3872.9,3872.4,0.3436]
[1761020589338,0.00254883,3872.9,3872.8,0.3436]
[1761020589739,0.3276,3874.1,3873.9,0.80814]
[1761020590042,0.3276,3874.4,3874.2,0.46451]
[1761020590336,0.1294,3875.2,3873.8,0.139]
[1761020590337,0.3276,3874.8,3874.6,0.80805]
[1761020590538,0.3276,3875.4,3875.3,0.46438]
[1761020590732,7.217,3875.5,3875.4,0.3436]
[1761020590931,0.3276,3875.4,3875.2,0.46438]
[1761020591128,0.3276,3875.4,3875.2,0.80798]
[1761020591338,0.46444,3874.9,3874.6,0.00192168]
[1761020591541,4.93466041,3874.7,3874.6,0.00192168]
[1761020591838,14.65266041,3874.7,3874.6,0.00192168]
[1761020592140,19.65266041,3874.7,3874.6,0.00192168]
[1761020593642,0.46461,3873.4,3872.8,0.46467]
[1761020593938,0.3276,3873.3,3873.0,0.3436]
[1761020594243,0.3276,3873.3,3873.1,0.3436]
[1761020594446,0.3276,3873.3,3873.1,0.80823]
[1761020594638,0.3276,3873.3,3873.1,0.81144548]
[1761020594835,0.3276,3873.5,3873.1,0.00321548]
[1761020595038,0.3276,3873.3,3873.1,0.00321548]
[1761020595647,1.16136,3874.0,3873.1,0.00321548]
[1761020595648,4.73606041,3874.5,3873.3,0.3436]
[1761020595838,1.340233,3875.1,3874.3,0.3436]
[1761020595839,0.3276,3875.0,3874.3,0.3436]
[1761020596032,10.17743,3874.9,3874.3,0.80809]
[1761020596345,10.17743,3874.9,3874.3,0.3413]
[1761020596346,9.713,3874.9,3874.3,0.3413]
[1761020596638,0.3343,3874.6,3873.8,0.139]
[1761020596838,0.3343,3874.1,3873.7,0.46457]
[1761020597243,0.3343,3874.1,3873.7,0.80587]
[1761020597440,0.3343,3873.9,3873.4,0.4646]
[1761020597744,0.46446,3874.7,3874.1,0.46452]
[1761020598039,0.79874,3874.8,3874.4,0.3413]
[1761020598242,0.3343,3874.4,3874.0,0.3413]
[1761020598440,0.3343,3874.2,3873.7,0.46456]
[1761020598639,0.3343,3874.2,3873.8,0.3413]
[1761020599845,0.3343,3874.2,3873.7,0.46457]
[1761020600138,0.3343,3874.1,3873.5,0.46459]
[1761020600346,0.3343,3873.7,3873.1,0.00321548]
[1761020600735,4.60706041,3873.9,3873.4,0.3413]
[1761020600938,0.46456,3873.8,3873.4,0.3413]
[1761020601133,0.46458,3873.7,3873.2,0.3413]
[1761020601337,0.7989,3873.5,3873.2,0.3413]
[1761020601642,0.4646,3873.5,3873.2,0.3413]
[1761020601842,0.79888,3873.7,3873.3,0.3413]
[1761020602237,0.3343,3873.3,3873.1,0.34451548]
[1761020602535,0.46461,3873.4,3873.1,0.00321548]
[1761020602738,0.46459,3873.6,3873.1,0.00321548]
[1761020603033,9.709,3874.1,3873.2,0.3413]
[1761020603238,0.3343,3874.0,3873.2,0.3413]
[1761020603447,0.3343,3873.8,3873.5,0.3413]
[1761020603954,0.79892,3873.4,3873.1,0.34451548]
[1761020604244,0.46462,3873.4,3873.1,0.34451548]
[1761020604442,9.709,3874.1,3873.4,0.4646]
[1761020604443,10.17353,3874.1,3873.4,0.4646]
[1761020604649,10.0433,3874.1,3873.5,0.3413]
[1761020605042,9.709,3874.1,3873.6,0.3413]
[1761020605239,9.709,3874.1,3873.1,0.13411548]
[1761020605240,9.709,3874.1,3873.8,0.3413]
[1761020605546,10.0433,3874.1,3873.8,0.3413]
[1761020606050,10.0433,3874.1,3873.6,0.46458]
[1761020606051,0.46457,3873.7,3873.1,0.47541548]
[1761020606239,0.46454,3874.0,3873.4,0.3413]
[1761020606546,0.46454,3874.0,3873.6,0.46458]
[1761020606741,0.46455,3873.9,3873.7,0.3413]
[1761020606942,0.79887,3873.7,3873.3,0.3413]
[1761020607248,9.709,3874.1,3873.2,0.3413]
[1761020607440,9.709,3874.1,3873.9,0.3413]
[1761020608142,9.702,3875.0,3874.1,0.3462]
[1761020608347,0.46452,3874.1,3873.7,0.46457]
[1761020608543,0.78874,3874.0,3873.7,0.3462]
[1761020608751,0.3242,3874.0,3873.7,0.3462]
[1761020608940,0.46455,3873.9,3873.7,0.3462]
[1761020609141,10.1665,3874.3,3873.9,0.3462]
[1761020609448,0.78871,3874.2,3873.9,0.3462]
[1761020609644,0.46451,3874.2,3873.9,0.3462]
[1761020609845,9.702,3874.3,3873.1,0.13411548]
[1761020609846,0.46455,3873.9,3873.6,0.3462]
[1761020610042,0.78875,3873.9,3873.6,0.3462]
[1761020610741,0.78877,3873.8,3873.6,0.3462]
[1761020610940,0.78877,3873.8,3873.1,0.13411548]
[1761020610941,0.3242,3873.7,3873.2,0.3462]
[1761020611248,0.3242,3874.1,3873.3,0.3462]
[1761020611544,0.46455,3873.9,3873.4,0.4646]
[1761020611745,0.3242,3874.1,3873.7,0.3462]
[1761020611953,9.702,3874.3,3873.8,0.1336]
[1761020612149,0.3242,3874.2,3873.9,0.3462]
[1761020612950,0.46453,3874.1,3873.9,0.3462]
[1761020613146,0.46453,3874.1,3873.8,0.1336]
[1761020613147,0.3242,3874.0,3873.3,0.46461]
[1761020613347,0.3242,3873.5,3873.3,0.3462]
[1761020613543,0.7888,3873.5,3873.3,0.3462]
[1761020613842,0.3242,3873.4,3873.1,0.34941548]
[1761020614044,0.3242,3874.0,3873.1,0.00321548]
[1761020614244,0.46456,3873.8,3873.5,0.3462]
[1761020614444,0.3242,3874.0,3873.6,0.3462]
[1761020614644,0.3242,3873.7,3873.4,0.4646]
[1761020614849,0.3242,3873.7,3873.5,0.3462]
[1761020615351,0.46456,3873.8,3873.4,0.3462]
[1761020615746,0.46457,3873.7,3873.3,0.3462]
[1761020615947,0.78878,3873.6,3873.3,0.3462]
[1761020616147,0.4646,3873.5,3873.3,0.3462]
[1761020616346,0.7888,3873.5,3873.3,0.3462]
[1761020616546,0.78882,3873.3,3873.1,0.34941548]
[1761020617252,0.3242,3873.2,3873.1,0.34941548]
[1761020618049,0.3242,3873.7,3873.1,0.00321548]
[1761020618349,10.0202,3873.8,3873.1,0.34941548]
[1761020618554,10.0202,3873.8,3873.4,0.3462]
[1761020618748,0.78879,3873.6,3873.4,0.3462]
[1761020618953,0.3242,3873.5,3873.4,0.3462]
[1761020619159,0.3242,3873.5,3872.3,1.16185]
[1761020619160,0.3242,3872.6,3872.3,0.3462]
[1761020619451,0.3242,3872.5,3872.2,0.3462]
[1761020619754,0.78892,3872.5,3872.2,0.3462]
[1761020619953,0.46473,3872.4,3872.2,0.3462]
[1761020620156,0.79090427,3872.4,3872.2,0.34940297]
[1761020622354,0.00197427,3872.4,3872.2,0.34940297]
[1761020622652,0.00197427,3872.4,3872.3,0.3462]
[1761020625259,0.78894,3872.3,3872.2,0.00320297]
[1761020627156,0.3242,3872.3,3872.2,0.00320297]
[1761020628261,0.00197427,3872.4,3872.3,0.3462]
[1761020630060,0.00197427,3872.4,3872.3,5.3462]
[1761020630558,0.00197427,3872.4,3872.3,0.3462]
[1761020631361,0.46457,3873.7,3873.4,0.3462]
[1761020631556,3.93625112,3873.8,3873.4,0.3462]
[1761020631557,4.26045112,3873.8,3873.5,0.3462]
[1761020631753,4.72501112,3873.8,3873.5,0.3462]
[1761020632355,0.00218593,3873.8,3873.7,0.3462]
[1761020637364,0.3242,3875.1,3874.0,0.3462]
[1761020637667,0.46442,3875.0,3874.6,0.46446]
[1761020637860,4.25425112,3874.9,3874.2,0.4736]
[1761020638065,0.318,3874.5,3874.3,0.3395]
[1761020638468,0.0018881,3874.5,3874.3,0.3395]
[1761020638659,0.318,3874.4,3874.3,0.3395]
[1761020638865,0.4663681,3874.5,3874.3,0.3395]
[1761020639362,0.7843681,3874.5,3874.3,0.3395]
[1761020639669,0.0018881,3874.5,3873.6,0.1336]
[1761020639875,0.0018881,3874.5,3874.4,0.3395]
[1761020641366,0.0018881,3874.5,3874.4,5.3395]
[1761020641671,9.994,3875.8,3874.9,0.3395]
[1761020641869,3.93625112,3875.9,3875.5,0.3395]
[1761020641870,0.46431,3875.9,3875.5,0.3395]
[1761020642176,0.78225,3876.4,3876.1,0.3395]
[1761020642368,0.318,3875.9,3875.5,0.3395]
[1761020642562,0.78233,3875.7,3875.5,0.34136784]
[1761020643271,3.93806215,3875.9,3875.5,0.34136784]
[1761020643475,0.318,3875.3,3874.1,0.3395]
[1761020643672,0.318,3874.0,3873.8,0.46455]
[1761020643977,0.78254,3874.0,3873.6,0.3395]
[1761020644172,0.78255,3873.9,3873.6,0.3395]
[1761020644366,0.46455,3873.9,3873.6,0.3395]
[1761020644566,0.46455,3873.9,3873.6,0.34196303]
[1761020645072,9.992,3874.7,3873.8,0.1341]
[1761020645279,9.992,3874.7,3873.9,0.3395]
[1761020645671,0.318,3874.6,3873.9,0.3395]
[1761020646174,0.46451,3874.2,3873.9,0.3395]
[1761020646477,0.46453,3874.1,3873.9,0.3395]
[1761020646681,0.46444,3874.8,3873.9,0.3395]
[1761020646886,0.46444,3874.8,3873.8,0.1341]
[1761020646887,0.46444,3874.8,3874.4,0.3395]
[1761020647171,0.78237,3875.4,3874.6,0.3395]
[1761020647376,6.604,3875.7,3875.0,0.3395]
[1761020647975,6.604,3875.7,3875.0,0.80391]
[1761020648168,0.46437,3875.4,3875.1,0.3395]
[1761020648669,0.46436,3875.5,3875.2,0.1341]
[1761020648970,0.31981103,3875.9,3875.7,0.80382]
[1761020648971,0.00181103,3875.9,3875.7,0.80382]
[1761020649165,0.00181103,3875.9,3875.8,0.3395]
[1761020650378,0.46434,3875.6,3875.4,0.3395]
[1761020650678,0.78234,3875.6,3875.4,0.3395]
[1761020650880,0.318,3875.6,3874.9,0.3395]
[1761020651471,0.46438,3875.3,3874.9,0.3395]
[1761020651773,0.46439,3875.2,3874.9,0.3395]
[1761020652269,0.46438,3875.3,3874.9,0.3395]
[1761020652469,0.318,3875.6,3874.9,0.3395]
[1761020652470,0.46441,3875.1,3874.9,0.3395]
[1761020652673,0.78241,3875.1,3874.9,0.3395]
[1761020652872,8.97,3875.8,3874.9,0.3395]
[1761020653070,0.46437,3875.4,3874.9,0.46441]
[1761020653277,0.46434,3875.6,3875.3,0.3395]
[1761020653479,0.46611103,3875.9,3875.5,0.3395]
[1761020653677,0.00181103,3875.9,3875.3,0.3395]
[1761020653874,0.00181103,3875.9,3875.7,0.3395]
[1761020654275,0.00181103,3875.9,3875.7,0.80382]
[1761020654470,0.00181103,3875.9,3875.8,0.3395]
[1761020655075,0.00181103,3875.9,3875.3,0.3395]
[1761020655076,0.46432,3875.8,3875.3,0.3395]
[1761020655280,0.00181103,3875.9,3875.7,0.3395]
[1761020655878,0.00181103,3875.9,3875.7,0.80382]
[1761020656075,0.00181103,3875.9,3875.7,0.3395]
[1761020656281,0.00181103,3875.9,3875.3,0.3201]
[1761020656476,0.46432,3875.8,3875.3,0.3201]
[1761020656882,0.46432,3875.8,3875.5,0.3201]
[1761020657587,0.00181103,3875.9,3875.5,0.3201]
[1761020657781,0.46612103,3875.9,3875.7,0.3201]
[1761020657981,0.00181103,3875.9,3875.7,0.3201]
[1761020658378,0.46611103,3875.9,3875.7,0.3201]
[1761020658686,0.00181103,3875.9,3875.7,0.3201]
[1761020658881,0.46431,3875.8,3875.7,0.3201]
[1761020659680,0.00181103,3875.9,3875.7,0.3201]
[1761020660494,0.46612103,3875.9,3875.7,0.3201]
[1761020660791,0.00181103,3875.9,3875.7,0.3201]
[1761020661392,0.00181103,3875.9,3875.7,0.78442]
[1761020661690,0.00181103,3875.9,3875.7,0.3201]
[1761020662588,0.00181103,3875.9,3875.8,0.3201]
[1761020663080,0.00181103,3875.9,3875.4,0.3201]
[1761020663081,0.32171103,3875.9,3875.4,0.3201]
[1761020663386,0.46612103,3875.9,3875.5,0.3201]
[1761020663585,0.00181103,3875.9,3875.6,0.78444]
[1761020663786,0.00181103,3875.9,3875.8,0.3201]
[1761020671493,0.00181103,3875.9,3875.8,0.78441]
[1761020671694,0.00181103,3875.9,3875.8,0.3201]
[1761020672092,0.00181103,3875.9,3875.8,0.78441]
[1761020672403,1.20918861,3877.4,3876.7,0.4642]
[1761020672597,0.59401421,3877.3,3877.2,0.4545]
[1761020672792,0.3389,3877.8,3877.3,0.3229]
[1761020672995,0.46411,3877.5,3877.3,0.3229]
[1761020673189,0.59407636,3877.7,3877.3,0.3229]
[1761020673190,0.4641,3877.7,3877.3,0.3229]
[1761020673396,0.4641,3877.6,3877.3,0.3229]
[1761020673597,0.4641,3877.6,3877.3,0.32605798]
[1761020673898,0.00215104,3877.7,3877.5,0.3229]
[1761020674403,0.00215104,3877.7,3877.6,0.3229]
[1761020683004,0.78102,3877.4,3877.3,0.00315798]
[1761020683506,0.46413,3877.4,3877.3,0.32605798]
[1761020683898,5.78103,3877.4,3877.3,0.00315798]
[1761020684299,0.46426,3876.3,3876.1,0.3229]
[1761020684603,0.46426,3876.3,3874.8,0.1316]
[1761020684604,0.3169,3876.2,3875.5,0.3229]
[1761020684901,0.46433,3875.7,3875.5,0.3229]
[1761020685407,0.46433,3875.7,3875.5,0.32573752]
[1761020686608,0.46429,3876.2,3875.7,0.3229]
[1761020686798,0.46428,3876.2,3875.7,0.3229]
[1761020687003,0.78121,3876.0,3875.7,0.3229]
[1761020687203,0.78122,3875.9,3875.7,0.3229]
[1761020687598,0.46432,3875.9,3875.7,0.3229]
[1761020690006,0.3169,3876.4,3875.7,0.3229]
[1761020690207,0.3169,3876.8,3875.7,0.3229]
[1761020690401,0.3169,3876.6,3875.6,0.3229]
[1761020690600,0.78122,3875.9,3875.6,0.3229]
[1761020690807,0.46432,3875.9,3875.6,0.3229]
[1761020691496,0.5173,3876.0,3875.6,0.46434]
[1761020691712,0.9816,3876.0,3875.7,0.3229]
[1761020692006,0.5173,3876.0,3875.7,0.3229]
[1761020692197,0.5173,3876.0,3875.7,0.78723]
[1761020692399,0.5173,3876.0,3875.8,0.3229]
[1761020692713,0.9816,3876.0,3875.8,0.3229]
[1761020695513,0.5173,3876.0,3875.8,0.3229]
[1761020695707,0.3169,3875.9,3875.5,0.00283752]
[1761020695907,0.46433,3875.8,3875.6,0.3229]
[1761020696514,0.5173,3876.0,3875.5,0.00283752]
[1761020696515,0.78125,3875.6,3875.5,0.00283752]
[1761020697211,0.46432,3875.8,3875.5,0.32573752]
[1761020698405,0.8649,3876.0,3875.6,0.3424]
[1761020698606,0.46432,3875.9,3875.6,0.3424]
[1761020698816,0.8649,3876.0,3875.9,0.3424]
[1761020699010,0.3476,3875.9,3875.6,0.3424]
[1761020699207,0.3476,3875.9,3875.5,0.00283752]
[1761020699208,0.81195,3875.7,3875.5,0.34523752]
[1761020699410,0.3476,3876.4,3875.5,0.00283752]
[1761020699613,0.3476,3876.8,3876.1,0.3424]
[1761020699805,0.46417,3877.1,3876.4,0.3424]
[1761020700008,0.81177,3877.2,3876.8,0.3424]
[1761020700206,0.34975104,3877.7,3876.8,0.3424]
[1761020700412,0.00215104,3877.7,3877.3,0.3424]
[1761020700619,0.00215104,3877.7,3877.6,0.3424]
[1761020701114,0.022,3877.8,3877.7,0.3424]
[1761020701319,0.3476,3877.7,3876.7,0.3424]
[1761020701518,0.3476,3877.7,3876.6,0.1369]
[1761020701819,0.022,3877.8,3877.3,0.3424]
[1761020702116,0.6021,3877.6,3877.3,0.46414]
[1761020702416,0.6021,3877.6,3877.2,0.1369]
[1761020702417,0.6021,3877.6,3877.5,0.3424]
[1761020703215,0.81156,3878.9,3877.6,0.3424]
[1761020703421,0.3476,3878.8,3877.6,0.3424]
[1761020703621,0.3476,3878.8,3877.5,1.1603]
[1761020703622,0.3476,3878.5,3877.9,0.46407]
[1761020703829,0.134,3878.4,3877.9,0.46407]
[1761020704117,0.3476,3878.3,3878.0,0.3424]
[1761020704314,0.3476,3878.3,3878.1,0.3424]
[1761020704315,0.00194132,3878.3,3878.1,0.3424]
[1761020704613,0.3476,3878.2,3877.3,0.3424]
[1761020704816,4.94750108,3878.2,3876.9,0.3424]
[1761020705118,0.134,3877.2,3876.3,0.20914007]
[1761020705418,0.3476,3876.5,3876.3,0.20914007]
[1761020705619,0.81185,3876.4,3876.3,0.20914007]
[1761020705816,0.3476,3876.3,3875.7,0.80673]
[1761020706209,0.3476,3876.3,3875.7,0.3424]
[1761020706517,0.3476,3875.6,3875.2,0.3424]
[1761020706719,0.3476,3875.6,3874.8,0.4793]
[1761020706919,0.3476,3875.1,3874.2,0.1369]
[1761020707114,0.3476,3875.1,3874.7,0.3424]
[1761020707317,0.4816,3876.0,3874.8,0.1369]
[1761020707517,0.46422,3876.7,3876.1,0.3424]
[1761020707708,0.3476,3876.8,3876.1,0.3424]
[1761020707913,0.34949667,3876.8,3876.4,0.3424]
[1761020708114,0.81188,3876.2,3876.1,0.00239399]
[1761020708308,0.3476,3875.3,3874.3,0.3424]
[1761020708624,0.3476,3875.4,3874.8,0.3424]
[1761020708917,0.3476,3875.4,3874.9,0.3424]
[1761020709216,0.3476,3875.4,3874.9,0.00196293]
[1761020709413,0.3476,3875.4,3874.9,0.34436293]
[1761020710413,0.3476,3875.4,3875.0,0.3424]
[1761020710616,4.59990108,3876.4,3875.0,0.3424]
[1761020710617,0.3476,3876.2,3875.0,0.3424]
[1761020710813,0.3476,3875.8,3875.2,0.46439]
[1761020711014,0.3476,3876.3,3875.8,0.3424]
[1761020711215,0.3476,3876.2,3875.8,0.3424]
[1761020711623,0.3476,3876.2,3875.5,0.46435]
[1761020711624,0.3476,3876.2,3875.9,0.3424]
[1761020712123,0.3476,3876.1,3875.6,0.46434]
[1761020712318,0.3476,3876.1,3875.7,0.3424]
[1761020712712,0.46425,3876.5,3876.0,0.3424]
[1761020712909,0.3476,3876.4,3876.0,0.3424]
[1761020713219,0.134,3876.6,3874.9,0.34436293]
[1761020713220,0.3476,3875.8,3874.9,0.34436293]
[1761020713420,0.3476,3875.5,3874.9,0.80879293]
[1761020713622,0.3476,3875.5,3875.0,0.3424]
[1761020713927,0.3476,3875.5,3875.1,0.3424]
[1761020714111,0.3476,3875.5,3875.0,0.46441]
[1761020714318,0.3476,3875.8,3875.0,0.3424]
[1761020714517,0.3476,3875.8,3875.1,0.3424]
[1761020714518,0.46435,3875.6,3875.1,0.3424]
[1761020714827,0.46437,3875.5,3875.1,0.3424]
[1761020715015,0.3476,3875.4,3875.1,0.3424]
[1761020715220,0.46434,3875.7,3875.1,0.4644]
[1761020715422,0.46434,3875.7,3875.1,0.8068]
[1761020715828,0.46435,3875.6,3875.2,0.3424]
[1761020716024,0.3476,3875.5,3875.2,0.3424]
[1761020716325,0.94592,3875.9,3875.0,0.3424]
[1761020716526,0.94592,3875.9,3875.3,0.46438]
[1761020716728,0.3476,3875.7,3875.4,0.3424]
[1761020716928,0.81195,3875.6,3875.4,0.3424]
[1761020717130,0.46435,3875.6,3875.0,0.80681]
[1761020717426,0.134,3875.9,3875.0,0.3424]
[1761020717630,0.3476,3875.3,3874.9,0.46639293]
[1761020717823,0.3476,3875.3,3874.9,0.80839293]
[1761020718019,0.3476,3875.3,3875.0,0.342]
[1761020718322,0.3476,3875.3,3874.9,0.80839293]
[1761020718523,0.3476,3875.3,3875.0,0.342]
[1761020718729,0.81199,3875.3,3874.9,0.00196293]
[1761020718926,0.321,3875.2,3874.9,0.00196293]
[1761020719320,0.321,3875.2,3874.9,0.34396293]
[1761020719719,0.46434,3875.7,3875.0,0.80641]
[1761020719923,0.321,3875.7,3875.3,0.46438]
[1761020720130,0.46433,3875.8,3875.4,0.342]
[1761020720432,0.46433,3875.8,3875.3,0.46438]
[1761020720433,0.78531,3875.9,3875.5,0.342]
[1761020720730,0.321,3875.9,3875.6,0.342]
[1761020720934,0.78529,3876.1,3875.8,0.342]
[1761020721124,0.4643,3876.0,3875.8,0.342]
[1761020721324,0.78532,3875.9,3875.6,0.342]
[1761020721524,0.321,3875.7,3875.4,0.342]
[1761020722121,0.321,3875.3,3875.0,0.342]
[1761020722325,0.321,3875.8,3875.0,0.02]
[1761020722529,0.321,3876.2,3875.3,0.342]
[1761020722721,0.321,3875.8,3875.4,0.46437]
[1761020722921,0.321,3875.8,3875.5,0.342]
[1761020723123,0.4643,3876.0,3875.7,0.342]
[1761020723330,0.7853,3876.0,3875.7,0.342]
[1761020723521,0.78531,3875.9,3875.7,0.342]
[1761020724028,0.78529,3876.1,3875.8,0.342]
[1761020724227,0.321,3876.4,3876.1,0.342]
[1761020724929,0.321,3876.4,3876.1,0.46428]
[1761020725128,0.321,3876.4,3876.1,0.80628]
[1761020725316,0.321,3876.4,3876.1,0.46428]
[1761020726337,0.321,3876.4,3875.8,0.46432]
[1761020726529,0.321,3876.4,3875.3,0.342]
[1761020726732,0.321,3875.9,3875.7,0.80633]
[1761020727029,0.321,3875.9,3875.7,0.342]
[1761020727328,0.321,3875.9,3875.7,0.80633]
[1761020727530,0.321,3875.9,3875.5,0.79215]
[1761020727723,0.321,3875.9,3875.6,0.46435]
[1761020727919,0.321,3875.9,3875.7,0.46433]
[1761020728120,0.3402,3876.2,3875.8,0.79212]
[1761020728435,0.3402,3876.2,3875.5,0.3278]
[1761020728621,0.80448,3876.2,3875.5,0.3278]
[1761020729323,0.3402,3876.0,3875.7,0.46433]
[1761020729525,0.3402,3876.0,3875.7,0.79213]
[1761020729920,0.3402,3876.0,3875.8,0.3278]
[1761020731135,0.3402,3876.5,3876.1,0.3278]
[1761020731432,0.46429,3876.1,3875.5,0.3278]
[1761020731734,0.3402,3876.3,3876.0,0.3278]
[1761020732231,0.3402,3876.2,3875.4,1.28072]
[1761020732534,0.3402,3876.2,3875.5,0.3278]
[1761020732735,0.3402,3876.2,3876.0,0.4643]
[1761020732929,0.3402,3876.2,3876.1,0.3278]
[1761020733834,0.46428,3876.2,3875.4,0.1198]
[1761020734133,0.46428,3876.2,3876.0,0.3278]
[1761020734334,0.3402,3876.1,3875.8,0.3278]
[1761020734734,0.3402,3876.0,3875.7,0.46433]
[1761020734931,0.3402,3876.0,3875.8,0.46432]
[1761020735136,0.3402,3876.0,3875.8,0.79212]
[1761020735633,0.3402,3876.0,3875.9,0.79211]
[1761020735831,0.3402,3876.0,3875.9,0.3278]
[1761020736035,0.3402,3876.0,3875.7,0.79212]
[1761020736538,0.3402,3876.0,3875.8,0.3278]
[1761020737333,0.3402,3875.9,3875.7,0.46432]
[1761020737530,0.3402,3875.9,3875.7,0.79212]
[1761020738137,0.3402,3875.9,3875.8,0.46432]
[1761020738933,0.3402,3875.9,3875.8,0.3278]
[1761020739737,0.3402,3875.9,3875.8,0.79212]
[1761020740738,0.3402,3875.9,3875.8,0.3278]
[1761020741434,0.3402,3875.9,3875.6,0.3278]
[1761020741633,0.3402,3875.9,3875.7,0.79213]
[1761020741830,0.3402,3875.9,3875.7,0.46433]
[1761020742134,0.3402,3875.9,3875.8,0.46432]
[1761020742332,0.3402,3875.9,3875.8,0.79212]
[1761020742533,0.3402,3876.2,3876.0,0.3278]
[1761020742732,0.5522,3876.2,3876.1,0.2148]
[1761020743229,1.01648,3876.2,3876.1,0.2148]
[1761020743424,0.5522,3876.2,3876.1,0.7594]
[1761020743730,0.5522,3876.5,3876.4,0.7594]
[1761020743925,0.3402,3877.1,3876.7,0.2148]
[1761020744137,0.3402,3877.8,3877.0,0.1198]
[1761020744337,0.3402,3877.8,3877.4,0.46413]
[1761020744525,0.3402,3877.8,3877.6,0.3278]
[1761020745038,0.34260312,3877.8,3877.6,0.3278]
[1761020746135,0.46649312,3877.8,3877.6,0.3278]
[1761020746432,0.3402,3877.4,3877.1,0.3278]
[1761020747540,0.3402,3877.4,3877.1,0.46417]
[1761020747834,0.3402,3877.4,3877.2,0.3278]
[1761020748141,0.3402,3877.3,3876.8,0.3278]
[1761020748337,0.3402,3877.1,3876.5,0.3278]
[1761020748726,0.3402,3877.1,3876.9,0.46419]
[1761020749036,0.3402,3877.7,3877.4,0.3278]
[1761020749442,0.00240312,3877.8,3877.6,0.3278]
[1761020749738,0.3402,3877.7,3877.6,0.3278]
[1761020749935,0.3402,3877.6,3877.3,0.3278]
[1761020750136,0.3402,3877.5,3877.1,0.46417]
[1761020750333,0.3402,3877.5,3877.2,0.46416]
[1761020750533,0.3402,3877.7,3877.0,0.3278]
[1761020750735,0.3402,3877.3,3876.9,0.79199]
[1761020751039,0.3402,3877.3,3877.0,0.46418]
[1761020751342,0.3402,3877.6,3877.1,0.79197]
[1761020751526,0.3402,3877.6,3877.2,0.3278]
[1761020751731,0.3402,3877.4,3877.2,0.3278]
[1761020752347,0.3402,3877.4,3876.8,0.792]
[1761020752538,0.3402,3877.3,3876.9,0.79199]
[1761020752933,0.3402,3877.3,3877.0,0.3278]
[1761020753536,0.3402,3877.1,3876.7,0.79201]
[1761020753731,0.3402,3877.1,3876.8,0.3278]
[1761020754135,0.3402,3877.1,3876.9,0.79199]
[1761020754737,0.3402,3877.1,3876.7,0.79201]
[1761020754943,0.3402,3877.1,3876.7,0.3278]
[1761020755242,0.3402,3877.1,3876.7,0.79201]
[1761020755538,0.5522,3876.8,3876.7,1.00681]
[1761020755734,0.1272,3877.2,3876.7,1.22361]
[1761020755940,0.212,3877.1,3877.0,0.2148]
[1761020756336,0.7845,3877.1,3877.0,0.2148]
[1761020757144,0.5522,3877.1,3877.0,0.7594]
[1761020757344,0.7845,3877.1,3877.0,0.4316]
[1761020757548,0.5522,3877.1,3877.0,0.89578]
[1761020757849,0.5522,3877.1,3876.5,0.1369]
[1761020757850,0.5578,3877.4,3877.3,0.7886]
[1761020758236,0.3264,3877.6,3877.4,0.2278]
[1761020758443,0.4447,3877.5,3877.4,0.2278]
[1761020758642,0.9031,3877.5,3877.4,0.2278]
[1761020759340,0.7711,3877.5,3877.4,0.4495]
[1761020759653,0.23380312,3877.8,3877.7,0.7886]
[1761020759839,0.77350312,3877.8,3877.7,0.23012413]
[1761020760139,0.56020312,3877.8,3877.7,0.79092413]
[1761020760836,0.77350312,3877.8,3877.7,0.45182413]
[1761020761040,0.77350312,3877.8,3877.7,0.79092413]
[1761020761631,0.77350312,3877.8,3877.7,0.00232413]
[1761020762031,5.77350312,3877.8,3877.7,0.00232413]
[1761020762542,5.77350312,3877.8,3876.5,0.1369]
[1761020762543,0.46419,3877.0,3876.5,0.1369]
[1761020762732,0.3264,3876.9,3876.4,0.46425]
[1761020762931,0.3264,3876.9,3876.0,0.1369]
[1761020762932,0.3264,3876.9,3876.8,0.3391]
[1761020763646,0.3264,3876.9,3876.8,0.3416496]
[1761020764046,0.3264,3877.7,3876.9,0.3391]
[1761020764241,0.3264,3877.6,3877.3,0.80324]
[1761020764446,0.3264,3877.6,3877.4,0.3391]
[1761020764949,0.3264,3877.6,3876.9,0.3391]